Cogmind - Beta 15 @@@ ROGUE MODE // 2025.05.12 @ 23:11:06 Player: Kazimir57 Result: Destroyed by G-47 Trooper with Particle Gun Performance ------------- Evolutions (0) 0 Regions Visited (1) 200 Robots Destroyed (9) 45 Value Destroyed (183) 183 Prototype IDs (0) 0 Alien Tech Used (0) 0 Bonus (0) 0 TOTAL SCORE: 428 Bonus ------- None Cogmind --------- Core Integrity 0/250 Matter 157/300 Energy 91/100 System Corruption 0% Temperature Cool (69) Movement Walking (120) Location -10/Materials Parts ------- > --- POWER (1) -------- (None) > --- PROPULSION (2) --- Aluminum Leg Aluminum Leg > --- UTILITY (2) ------ Medium Storage Unit Utility Shielding > --- WEAPON (2) ------- Small Laser > --- INVENTORY (10) --- Light Ion Engine Aluminum Leg Wheel Peak State ------------ > --- POWER ------------ Ion Engine > --- PROPULSION ------- Light Treads Light Treads > --- UTILITY ---------- Small Storage Unit Utility Shielding > --- WEAPON ----------- Light Assault Rifle Light Assault Rifle > --- INVENTORY -------- Light Ion Engine Aluminum Leg Aluminum Leg Wheel Wheel EM Pulse Gun EM Pulse Gun [Rating: 7] Favorites ----------- Power Ion Engine Engine Ion Engine Propulsion Light Treads Treads Light Treads Leg Aluminum Leg Wheel Wheel Utility Small Storage Unit Storage Small Storage Unit Protection Utility Shielding Weapon Light Assault Rifle Energy Gun Small Laser Ballistic Gun Light Assault Rifle Special Weapon Welding Torch Build | -11 -10 ------- Run | Yrd Mat Slots Evolved . | . . Power . | . . Propulsion . | . . Utility . | . . Weapon . | . . Parts Attached 18 | 6 12 Power 2 | 2 . Engine 2 | 2 . Core . | . . Reactor . | . . Propulsion 8 | 2 6 Treads 2 | 2 . Leg 4 | . 4 Wheel 2 | . 2 Hover . | . . Flight . | . . Utility 3 | 1 2 Device . | . . Storage 2 | 1 1 Processor . | . . Hackware . | . . Protection 1 | . 1 Artifact . | . . Weapon 5 | 1 4 Energy Gun 1 | . 1 Energy Cannon . | . . Ballistic Gun 3 | 1 2 Ballistic Cannon . | . . Launcher . | . . Special Weapon 1 | . 1 Impact Weapon . | . . Slashing Weapon . | . . Piercing Weapon . | . . Special Melee Weapon . | . . Unidentified Prototypes . | . . Parts Lost 6 | . 6 Power 1 | . 1 Propulsion 2 | . 2 Utility . | . . Weapon 3 | . 3 Highest Loss Streak 6 | . 6 To Critical Strikes . | . . Average Backups 6 | 4 6 Power . | . 1 Propulsion 3 | 2 3 Utility . | . . Weapon 1 | 1 1 Tool/Special . | . . Unused Backups 3 | . 3 Power . | . . Propulsion 1 | . 1 Utility . | . . Weapon 2 | . 2 Tool/Special . | . . Average Slot Usage (%) 82 | . 82 Engine 13 | . 13 Treads 22 | . 22 Leg 4 | . 4 Storage 14 | . 14 Protection 5 | . 5 Ballistic Gun 19 | . 19 Peak Build Rating 7 | 5 7 Average Rating 5 | 3 5 On Entrance 2 | . 5 Naked Turns . | . . Heaviest Build 18 | 11 18 Greatest Support 40 | 40 40 Greatest Overweight (x) 1 | . 1 Average Overweight (x) . | . . Largest Inventory Capacity 10 | 8 10 Average Capacity 8 | 6 8 Most Carried 9 | 7 9 Average Carried 6 | 4 6 Final Capacity 10 | 8 10 Final Carried 7 | 7 3 Class Distribution -------------------- 100% | Mutant Dominant Class ---------------- Mutant | -10/Materials Resources | -11 -10 ----------- Run | Yrd Mat Matter Collected 398 | 260 138 Remotely . | . . Salvage Created 249 | . 249 Parts 26 | . 26 Haulers Intercepted 1 | . 1 Recyclers Shooed 1 | . 1 Parts Field Recycled . | . . Retrieved Matter . | . . Parts Self-Destructed . | . . Prevented . | . . Kills | -11 -10 ------- Run | Yrd Mat Combat Hostiles Destroyed 7 | . 7 Guns 7 | . 7 Classes Destroyed 4 | . 4 Builder 1 | . 1 Hauler 1 | . 1 Swarmer 3 | . 3 Grunt 4 | . 4 Best Kill Streak 3 | . 3 Combat Bots Only 3 | . 3 Max Kills in Single Turn 1 | . 1 Gunslinging . | . . Exploded . | . . Melee . | . . Uniques/NPCs Destroyed . | . . Combat | -11 -10 -------- Run | Yrd Mat Hostile Shots Fired 113 | . 113 Missed 31 | . 31 Hits 82 | . 82 Projectile 82 | . 82 AOE 1 | . 1 Critical Strikes 4 | . 4 Damage Taken 1159 | . 1159 Core 252 | . 252 Absorbed by Shields . | . . Redirected to Shielding 19 | . 19 Core Remaining (%) 100 | 100 . Volleys Fired 154 | . 154 Largest 2 | . 2 Hottest 40 | . 40 Shots Fired 189 | . 189 Gun 182 | . 182 Cannon . | . . Launcher . | . . Special 7 | . 7 Kinetic 179 | . 179 Thermal 10 | . 10 Explosive . | . . Electromagnetic . | . . Robot Hit Streak 6 | . 6 Robot Miss Streak 3 | . 3 Penetration Max . | . . Secondary Targets 2 | . 2 Max Gunslinging Chain 1 | . 1 Shots Hit Robots 50 | . 50 Core Hits 23 | . 23 Critical Kills 1 | . 1 Critical Parts Destroyed . | . . Critical Strikes 1 | . 1 Destroy 1 | . 1 Melee Attacks . | . . Impact . | . . Slashing . | . . Piercing . | . . Sneak Attacks . | . . Combat Hostiles . | . . Follow-up Attacks . | . . Damage Inflicted 407 | . 407 Guns 399 | . 399 Cannons . | . . Explosions . | . . Melee . | . . Ramming 8 | . 8 Kinetic 389 | . 389 Thermal 10 | . 10 Explosive . | . . Electromagnetic . | . . Impact . | . . Slashing . | . . Piercing . | . . Highest Corruption . | . . Average Corruption . | . . Corruption Purged . | . . Corruption Blocked . | . . Overload Shots . | . . Overflow Damage . | . . Projectiles . | . . Explosions . | . . Melee . | . . Knockbacks . | . . Impact . | . . Kinetic . | . . Secondary . | . . Self-Inflicted Damage 73 | . 73 Shots 1 | . 1 Rammed 1 | . 1 Targets Rammed 5 | . 5 Kicked 4 | . 4 Crushed . | . . Highest Temperature 77 | . 77 Average Temperature 31 | . 31 Received Heat Transfer 582 | . 582 Siege Activations . | . . Martial Activations . | . . Shielding Activations . | . . Robots Disrupted . | . . Combat Hostiles . | . . Robots Corrupted . | . . Combat Hostiles . | . . Parts Fried . | . . Impact Corruptions . | . . Robots Melted . | . . Combat Hostiles . | . . Parts Melted . | . . Heat Transferred 25 | . 25 Parts Sabotaged . | . . Parts Stolen . | . . Parts Stripped . | . . Power Chain Reactions . | . . Alert | -11 -10 ------- Run | Yrd Mat Maximum Alert Level . | . . Low Security (%) 100 | 100 100 Level 1 . | . . Level 2 . | . . Level 3 . | . . Level 4 . | . . Level 5 . | . . High Security . | . . Max Security . | . . Peak Influence 96 | . 96 Initial . | . . Average 14 | . 16 Influence Increases 201 | . 201 Destroy 0b10 Robot/C 140 | . 140 Destroy 0b10 Robot/NC 10 | . 10 Destroy Leader 22 | . 22 Disable Machine 15 | . 15 Destroy Structure 14 | . 14 Influence Decreases 160 | . 160 Time Decay 100 | . 100 Lost Part 60 | . 60 Squads Dispatched 1 | . 1 Investigation . | . . Extermination . | . . Reinforcement 1 | . 1 Assault . | . . Garrison . | . . Intercept . | . . Searches Triggered . | . . Construction Impeded . | . . Haulers Reinforced . | . . Active Scanning Responses . | . . Cargo Convoy Interrupts . | . . Stealth | -11 -10 --------- Run | Yrd Mat Distress Signals . | . . Communications Jammed . | . . Distress Signals . | . . Times Spotted 13 | . 13 Peak Tracking Total 5 | . 5 Tactical Retreats . | . . Traps | -11 -10 ------- Run | Yrd Mat Traps Triggered . | . . Indirectly . | . . Trap Hack Attempts . | . . Triggered . | . . Disarmed . | . . Reprogrammed . | . . Reused . | . . Traps Extracted . | . . Installed . | . . Triggered . | . . Machines | -11 -10 ---------- Run | Yrd Mat Machines Disabled 1 | . 1 Max in Single Turn 1 | . 1 Machines Repaired . | . . Machines Dismantled . | . . Machines Sabotaged . | . . Overloaded Fab Kills . | . . Hacking | -11 -10 --------- Run | Yrd Mat Machines Accessed . | . . Terminals . | . . Fabricators . | . . Repair Stations . | . . Recycling Units . | . . Scanalyzers . | . . Garrison Access . | . . Total Hacks . | . . Successful . | . . Failed . | . . Catastrophic . | . . Database Lockouts . | . . Manual . | . . Terminals . | . . Fabricators . | . . Repair Stations . | . . Recycling Units . | . . Scanalyzers . | . . Garrison Access . | . . Terminal Hacks . | . . Fabricator Hacks . | . . Repair Station Hacks . | . . Recycling Unit Hacks . | . . Scanalyzer . | . . Garrison Access Hacks . | . . Unauthorized Hacks . | . . Terminals . | . . Fabricators . | . . Repair Stations . | . . Recycling Units . | . . Scanalyzers . | . . Garrison Access . | . . Data Cores Recovered . | . . Used . | . . Hacking Detections . | . . Full Trace Events . | . . Feedback Events . | . . Feedback Blocked . | . . Robot Schematics Acquired . | . . Robots Built . | . . Authchips . | . . Time . | . . Total Robot Build Rating . | . . Part Schematics Acquired . | . . Parts Built . | . . Authchips . | . . Time . | . . Total Part Build Rating . | . . Parts Repaired . | . . Time . | . . Parts Recycled . | . . Recycled Matter . | . . Retrieved Matter . | . . Retrieved Components . | . . Parts Scanalyzed . | . . Part Schematics Acquired . | . . Parts Damaged . | . . Bothacking | -11 -10 ------------ Run | Yrd Mat Used RIF Installer . | . . Robots Hacked . | . . Non-combat . | . . Combat . | . . Robot Hacks Applied . | . . Relay Couplers Released . | . . Fabnet Peak Effective % . | . . Robots Rewired . | . . Allies Hacked . | . . Hacks Repelled . | . . Allies | -11 -10 -------- Run | Yrd Mat Total Allies . | . . Largest Group . | . . Highest-Rated Group . | . . Highest-Rated Ally . | . . Total Orders . | . . Ally Attacks . | . . Total Damage . | . . Kills . | . . Allies Corrupted . | . . Allies Melted . | . . Intel | -11 -10 ------- Run | Yrd Mat Active Infowar (turns) . | . . Robot Analysis Total . | . . Derelict Logs Recovered . | . . Drone Launches . | . . Drone Recoveries . | . . Exploration | -11 -10 ------------- Run | Yrd Mat Turns Passed 964 | 90 874 Spaces Moved 278 | 48 230 Core 1 | 1 . Treads 218 | 47 171 Legs 52 | . 52 Wheels 7 | . 7 Hover . | . . Flight . | . . Fastest Speed 50 | 50 80 Average Speed 150 | 157 148 Slowest Speed 190 | 160 190 Overloaded Moves . | . . Propulsion Burnouts . | . . Robots Hopped . | . . Potential Cave-ins . | . . Cave-ins Triggered . | . . Exploration Rate (%) 23 | 3 43 Regions Visited 1 Branch Regions . Pre-discovered Areas . | . . Known Exits Taken . | . . Unknown Exits Taken 1 | 1 . Scrap Searched . | . . Spaces Dug . | . . Terrain Destroyed 12 | . 12 Melee . | . . Projectile . | . . AOE 12 | . 12 Terrain Rammed . | . . Walls Destroyed . | . . Machines Disabled . | . . Actions | -11 -10 --------- Run | Yrd Mat Total 662 | 59 603 Wait 190 | . 190 Move 277 | 47 230 Hop . | . . Pick Up 9 | 6 3 Fast Attach 7 | 5 2 Attach 4 | . 4 Detach . | . . Swap 10 | 1 9 Drop 6 | . 6 Fire 154 | . 154 Melee . | . . Ram . | . . Kick 4 | . 4 Crush 1 | . 1 Escape Stasis . | . . Rewire . | . . Trap . | . . Miscellaneous . | . . Route ------- -11/Scrapyard -10/Materials (discovered 1 exit: [*Mat]) History --------- Turn | Location | Event 16 | -11/Scrapyard | Discovered new exit (range 14) 91 | -11/Scrapyard | Entered Materials 301 | -10/Materials | Build established: Mutant 847 | -10/Materials | Discovered new exit (range 5) 929 | -10/Materials | Core integrity fell below 50% 952 | -10/Materials | Core integrity fell below 20% 965 | -10/Materials | Destroyed by G-47 Trooper with Particle Gun Last Messages --------------- 00954_ R-06 Scavenger inserts Lgt. Assault Rifle into recycling unit. 00954_ U-05 Engineer lays Concrete. 00954_ Kicked T-07 Excavator. 00955_ Recycling unit begins recycling process. 00955_ U-05 Engineer lays Concrete. 00955_ Kicked G-47 Trooper out of the way. 00956_ Acquired 38 matter. 00956_ K-01 Serf collects debris. 00956_ U-05 Engineer lays Concrete. 00957_ R-06 Scavenger inserts EM Pulse Gun into recycling unit. 00958_ Acquired Sml. Laser. 00959_ Lgt. Assault Rifle destroyed. 00960_ R-06 Scavenger inserts Corrupted Wheel into recycling unit. 00961_ Recycling unit begins recycling process. 00961_ Critical hit (Burn: +37). 00962_ K-01 Serf collects debris. 00963_ Critical hit (Burn: +37). Map ----- +----------------------------------------------------+ | | | | | | | | | ??????????????????????????????????????????????? | | ??????????????????????????????????????????????? | | ??????????????????????????????????????????????? | | ??????????????????????????????????????????????? | | ????????????????????###########???????????????? | | ????????????????????# #???????????????? | | ????????????????????# #???????????????? | | ????????????????????# #???????????????? | | ????????????????????# #???????????????? | | ????????????????????# """ """ #####???????????? | | ????????????????????# """ """ # #???????????? | | ????????????????????# """ "" # < #???????????? | | ????????????????????# # #?????####### | | ????????????????????#######+### ####### # | | ???????????????????????# % *% # | | ???????????????????????# = % # | | ???????????????????????# w !% # | | ???????????????????????# ## ! # | | ???????????????????????# ### ## | | ???????????????????????# #?# # | | ?????????# ########### u #?# # | | ?????????# =^@ g a u r #?# # | | ?????????+ ^! * "Y"u #?# =#* | | ?????????# |^%g* """ #?#=[[+% | | ?????????##+###### ######+######## #?#=![#% | | ?????????????????#?????? ??????###+###?##### | | ???????????????????????? ?????????????????# | | ???????????????????????? ????????????????## | | ???????????????????????? ???????????????## | | ???????????????????????? #??????????????# | | ????????????????????????""""" #??????????????# | | ????????????????????????""""" #??????????????# | | ????????????????????????""""? #??????????????# | | ?????????????????????????????????????????????# | | ????????????????????????????????????????????### | | ???????????????????????????????############## | | ???????????????????????????????# # | | ???????????????????????????????# """"" # | | ???????????????????????????????#| |! """"" # | | ???????????????????????????????# || """"" # | | ???????????????????????????????# |! # | | ???????????????????????????????######+#######! | | ??????????????????????????????????# #???# | | ??????????????????????????????????# #???# | | ??????????????????????????????????# #???### | | ??????????????????????????????????# ####### | +----------------------------------------------------+ Best States ------------- Heat Dissipation 25 Energy Generation 10 Energy Capacity 250 Matter Stores 300 Matter Capacity 300 Sight Range 16 Terrain Scan Density 10 Utility Shielding 33 Evasion (%) 50 Recoil Reduction 2 Item Schematics ----------------- None Robot Schematics ------------------ None Fabricated ------------ Nothing Repaired ---------- Nothing Alien Tech Used ----------------- None Achievements -------------- None Challenges ------------ None Game ------ Seed ReactionOvertunedNeutralizer Manual? 0 Play Time 00:09:29 Cumulative 7.5 hours Start 2025.05.12 @ 23:03:18 End 2025.05.12 @ 23:11:06 Sessions 1 Manual Loads 0 Difficulty Rogue Special Mode None Game No. 14 Rogue 14 Adventurer 0 Explorer 0 Win Type - Total 0 Types 0/0/0/0/0/0/0/0/0/0 Lore% 5 Gallery% 14 Achievement% 13 Wizard Run 0 Options --------- Layout 1 ASCII 0 Keyboard 0 Movement Mouse Keybinds 0 Fullscreen 1 Font 24/Smallcaps Map View 50x35 Zoom Use 0% Tactical HUD 1 Map Filters NONE Filters NONE Steam 1 RUN: f49620b4-eaf0-4dbd-97f3-ed84d2efc590